[Event "*** Titled Tuesday Blitz"]
[Site "Chess.com"]
[Date "2020.11.03"]
[Round "3"]
[White "ApacheSVD"]
[Black "Jungle_Jaguar"]
[Result "0-1"]
[WhiteElo "2412"]
[BlackElo "2633"]
[TimeControl "180+1"]
[EndTime "10:31:52 PST"]
[Termination "Jungle_Jaguar won by checkmate"]

1. e4 {[%clk 0:03:00.9]} 1... c5 {[%clk 0:02:59.3]} 2. Nf3 {[%clk 0:02:56.2]}
2... d6 {[%clk 0:02:59.9]} 3. d4 {[%clk 0:02:55.9]} 3... cxd4 {[%clk 0:03:00.3]}
4. Nxd4 {[%clk 0:02:56.8]} 4... Nf6 {[%clk 0:03:00.9]} 5. Nc3 {[%clk 0:02:56.6]}
5... Nc6 {[%clk 0:03:01.5]} 6. Bg5 {[%clk 0:02:51.7]} 6... e6 {[%clk 0:03:01.7]}
7. Qd2 {[%clk 0:02:51.7]} 7... a6 {[%clk 0:03:02.1]} 8. O-O-O {[%clk 0:02:51.2]}
8... Bd7 {[%clk 0:03:02.3]} 9. f4 {[%clk 0:02:51]} 9... b5 {[%clk 0:03:02.5]}
10. f5 {[%clk 0:02:51.9]} 10... Qb6 {[%clk 0:02:49.4]} 11. fxe6 {[%clk
0:02:45.4]} 11... fxe6 {[%clk 0:02:50.3]} 12. Nxc6 {[%clk 0:02:29.7]} 12... Bxc6
{[%clk 0:02:45.3]} 13. Bxf6 {[%clk 0:02:19.7]} 13... gxf6 {[%clk 0:02:46.2]} 14.
Be2 {[%clk 0:02:20.4]} 14... h5 {[%clk 0:02:41.2]} 15. Kb1 {[%clk 0:02:15]}
15... O-O-O {[%clk 0:02:40.1]} 16. Qf4 {[%clk 0:02:11.8]} 16... Be7 {[%clk
0:02:33.3]} 17. Bf3 {[%clk 0:02:07.7]} 17... Qc5 {[%clk 0:02:32.3]} 18. Rhe1
{[%clk 0:02:01.3]} 18... Rhg8 {[%clk 0:02:24.3]} 19. Nd5 {[%clk 0:01:54.7]}
19... Bxd5 {[%clk 0:02:16.6]} 20. exd5 {[%clk 0:01:50.5]} 20... e5 {[%clk
0:02:16.7]} 21. Qf5+ {[%clk 0:01:50.8]} 21... Kb8 {[%clk 0:01:59.6]} 22. Qxh5
{[%clk 0:01:51]} 22... Rg5 {[%clk 0:01:48.7]} 23. Qh7 {[%clk 0:01:50.8]} 23...
Rd7 {[%clk 0:01:49.2]} 24. h4 {[%clk 0:01:39.7]} 24... Rg3 {[%clk 0:01:47.7]}
25. h5 {[%clk 0:01:36.6]} 25... Rc7 {[%clk 0:01:45.2]} 26. Qe4 {[%clk
0:01:32.4]} 26... Bf8 {[%clk 0:01:37.8]} 27. Re2 {[%clk 0:01:17.4]} 27... Bh6
{[%clk 0:01:20.3]} 28. Qf5 {[%clk 0:01:07.5]} 28... Bg5 {[%clk 0:01:16.6]} 29.
Qg6 {[%clk 0:01:04]} 29... Bh4 {[%clk 0:01:08.6]} 30. Qe8+ {[%clk 0:00:45.6]}
30... Rc8 {[%clk 0:01:06.3]} 31. Qe6 {[%clk 0:00:44.3]} 31... Bg5 {[%clk
0:01:02.4]} 32. Qf5 {[%clk 0:00:42.3]} 32... Rf8 {[%clk 0:00:48.5]} 33. Qg6
{[%clk 0:00:30.5]} 33... Bf4 {[%clk 0:00:47.8]} 34. Qf5 {[%clk 0:00:26.1]} 34...
Rg5 {[%clk 0:00:47.2]} 35. Qe4 {[%clk 0:00:25.9]} 35... f5 {[%clk 0:00:47.4]}
36. Qd3 {[%clk 0:00:11.6]} 36... e4 {[%clk 0:00:47.8]} 37. Bxe4 {[%clk
0:00:07.1]} 37... fxe4 {[%clk 0:00:48.7]} 38. Qxe4 {[%clk 0:00:07.7]} 38... Be5
{[%clk 0:00:49.3]} 39. h6 {[%clk 0:00:06.7]} 39... Rh5 {[%clk 0:00:47.3]} 40. h7
{[%clk 0:00:06.8]} 40... Qc7 {[%clk 0:00:46.5]} 41. Qg6 {[%clk 0:00:03.4]} 41...
Rxh7 {[%clk 0:00:45.9]} 42. g4 {[%clk 0:00:02.1]} 42... Rg7 {[%clk 0:00:45.7]}
43. Qe6 {[%clk 0:00:02.2]} 43... Re7 {[%clk 0:00:45.1]} 44. Qg6 {[%clk
0:00:02.1]} 44... Rg7 {[%clk 0:00:43]} 45. Qe6 {[%clk 0:00:02.4]} 45... Qc8
{[%clk 0:00:43.2]} 46. Qxc8+ {[%clk 0:00:01.6]} 46... Kxc8 {[%clk 0:00:44.1]}
47. g5 {[%clk 0:00:02.1]} 47... Rxg5 {[%clk 0:00:44.3]} 48. b3 {[%clk
0:00:02.8]} 48... Rgf5 {[%clk 0:00:43.9]} 49. a4 {[%clk 0:00:02.7]} 49... bxa4
{[%clk 0:00:43]} 50. bxa4 {[%clk 0:00:03.6]} 50... Rf4 {[%clk 0:00:43.7]} 51.
Rd3 {[%clk 0:00:02.1]} 51... Rb4+ {[%clk 0:00:39.7]} 52. Kc1 {[%clk 0:00:01.8]}
52... Rf1+ {[%clk 0:00:38.7]} 53. Kd2 {[%clk 0:00:02.3]} 53... Rxa4 {[%clk
0:00:37.9]} 54. Rb3 {[%clk 0:00:02.7]} 54... Raa1 {[%clk 0:00:37.2]} 55. Rb6
{[%clk 0:00:02.4]} 55... Rad1+ {[%clk 0:00:36.9]} 56. Ke3 {[%clk 0:00:02.8]}
56... Bd4+ {[%clk 0:00:36.6]} 57. Ke4 {[%clk 0:00:02.5]} 57... Bxb6 {[%clk
0:00:37.5]} 58. c4 {[%clk 0:00:03.1]} 58... Rd4+ {[%clk 0:00:37.2]} 59. Ke3
{[%clk 0:00:03.7]} 59... Rxd5+ {[%clk 0:00:36.3]} 60. Ke4 {[%clk 0:00:03.8]}
60... Re5+ {[%clk 0:00:36.8]} 61. Kd3 {[%clk 0:00:04.1]} 61... Rf3+ {[%clk
0:00:37.5]} 62. Kc2 {[%clk 0:00:03.7]} 62... Ba5 {[%clk 0:00:38.2]} 63. Kd1
{[%clk 0:00:04.6]} 63... Rf1+ {[%clk 0:00:38.1]} 64. Kc2 {[%clk 0:00:04.4]}
64... Rxe2+ {[%clk 0:00:38.8]} 65. Kd3 {[%clk 0:00:05.3]} 65... Rd2+ {[%clk
0:00:37.8]} 66. Ke4 {[%clk 0:00:06.2]} 66... Re1+ {[%clk 0:00:38]} 67. Kf5
{[%clk 0:00:06.4]} 67... Rf2+ {[%clk 0:00:37.8]} 68. Kg4 {[%clk 0:00:07]} 68...
Rg1+ {[%clk 0:00:38.7]} 69. Kh3 {[%clk 0:00:06.4]} 69... Bc7 {[%clk 0:00:39.2]}
70. c5 {[%clk 0:00:06]} 70... d5 {[%clk 0:00:39.8]} 71. c6 {[%clk 0:00:06.2]}
71... Rh2# {[%clk 0:00:40.7]} 0-1

[Event "*** Titled Tuesday Blitz"]
[Site "Chess.com"]
[Date "2020.11.03"]
[Round "3"]
[White "Trickov"]
[Black "JiiHart"]
[Result "0-1"]
[WhiteElo "2309"]
[BlackElo "2089"]
[TimeControl "180+1"]
[EndTime "10:31:52 PST"]
[Termination "JiiHart won on time"]

1. d4 {[%clk 0:02:57.7]} 1... Nf6 {[%clk 0:02:59.4]} 2. Nf3 {[%clk 0:02:49.7]}
2... e6 {[%clk 0:02:58.1]} 3. g3 {[%clk 0:02:47]} 3... c5 {[%clk 0:02:57]} 4.
Bg2 {[%clk 0:02:46.6]} 4... cxd4 {[%clk 0:02:56.4]} 5. O-O {[%clk 0:02:45.6]}
5... Nc6 {[%clk 0:02:55.7]} 6. Nxd4 {[%clk 0:02:45.7]} 6... Be7 {[%clk
0:02:54.7]} 7. c4 {[%clk 0:02:44.7]} 7... O-O {[%clk 0:02:52.9]} 8. Nc3 {[%clk
0:02:44.9]} 8... a6 {[%clk 0:02:52.3]} 9. e4 {[%clk 0:02:44.5]} 9... Qc7 {[%clk
0:02:51.3]} 10. Be3 {[%clk 0:02:41.8]} 10... d6 {[%clk 0:02:38.5]} 11. Rc1
{[%clk 0:02:41]} 11... Bd7 {[%clk 0:02:34]} 12. h3 {[%clk 0:02:36.9]} 12... Rac8
{[%clk 0:02:26.7]} 13. Qd2 {[%clk 0:02:29.4]} 13... Qb8 {[%clk 0:02:24.4]} 14.
b3 {[%clk 0:02:26.5]} 14... Rfd8 {[%clk 0:02:23.2]} 15. Rfd1 {[%clk 0:02:23.7]}
15... Be8 {[%clk 0:02:22.1]} 16. Nde2 {[%clk 0:02:12.7]} 16... b5 {[%clk
0:02:06]} 17. cxb5 {[%clk 0:02:10.5]} 17... axb5 {[%clk 0:02:05.8]} 18. g4
{[%clk 0:02:08.5]} 18... h6 {[%clk 0:01:48.1]} 19. Ng3 {[%clk 0:02:05.7]} 19...
Bf8 {[%clk 0:01:45.5]} 20. Qe2 {[%clk 0:01:52.9]} 20... b4 {[%clk 0:01:42.7]}
21. Na4 {[%clk 0:01:51.1]} 21... Ne5 {[%clk 0:01:15.3]} 22. Rxc8 {[%clk
0:01:47]} 22... Rxc8 {[%clk 0:01:12.7]} 23. Nb6 {[%clk 0:01:43.6]} 23... Rc6
{[%clk 0:01:07.4]} 24. f4 {[%clk 0:01:41.7]} 24... Ned7 {[%clk 0:00:51.4]} 25.
Nc4 {[%clk 0:01:34.6]} 25... d5 {[%clk 0:00:49.1]} 26. exd5 {[%clk 0:01:29]}
26... exd5 {[%clk 0:00:46.8]} 27. Bxd5 {[%clk 0:01:20.4]} 27... Nxd5 {[%clk
0:00:46.8]} 28. Rxd5 {[%clk 0:01:19.1]} 28... Re6 {[%clk 0:00:47.2]} 29. Qf2
{[%clk 0:01:12.9]} 29... Nf6 {[%clk 0:00:35.6]} 30. Re5 {[%clk 0:01:11.2]} 30...
Rxe5 {[%clk 0:00:27.9]} 31. fxe5 {[%clk 0:01:07.3]} 31... Nd5 {[%clk 0:00:26.3]}
32. Bc5 {[%clk 0:01:04.1]} 32... Bxc5 {[%clk 0:00:23.5]} 33. Qxc5 {[%clk
0:01:04]} 33... Nc3 {[%clk 0:00:21.1]} 34. Nf5 {[%clk 0:00:58]} 34... Kh7 {[%clk
0:00:19.4]} 35. Nfd6 {[%clk 0:00:53.2]} 35... Qd8 {[%clk 0:00:15.9]} 36. Qf2
{[%clk 0:00:45.2]} 36... Qg5 {[%clk 0:00:14.3]} 37. Qf5+ {[%clk 0:00:43.2]}
37... Qxf5 {[%clk 0:00:14]} 38. gxf5 {[%clk 0:00:43.2]} 38... Bd7 {[%clk
0:00:13.5]} 39. Ne3 {[%clk 0:00:41.2]} 39... Nxa2 {[%clk 0:00:13]} 40. Nxf7
{[%clk 0:00:40.7]} 40... Nc1 {[%clk 0:00:13]} 41. Nd6 {[%clk 0:00:39.3]} 41...
Nxb3 {[%clk 0:00:11.9]} 42. e6 {[%clk 0:00:39.6]} 42... Bc6 {[%clk 0:00:11.4]}
43. e7 {[%clk 0:00:39.4]} 43... Nd4 {[%clk 0:00:11.3]} 44. e8=Q {[%clk
0:00:28.1]} 44... Bxe8 {[%clk 0:00:10.6]} 45. Nxe8 {[%clk 0:00:28.1]} 45... b3
{[%clk 0:00:11.1]} 46. Nc4 {[%clk 0:00:25.1]} 46... Nxf5 {[%clk 0:00:07.6]} 47.
Nc7 {[%clk 0:00:24.5]} 47... Nd4 {[%clk 0:00:06.6]} 48. Nd5 {[%clk 0:00:21.1]}
48... Kg6 {[%clk 0:00:07.2]} 49. Kf2 {[%clk 0:00:19.5]} 49... Kf5 {[%clk
0:00:07.2]} 50. Ke3 {[%clk 0:00:16.5]} 50... g5 {[%clk 0:00:07.1]} 51. Kxd4
{[%clk 0:00:14.4]} 51... g4 {[%clk 0:00:07.4]} 52. Nde3+ {[%clk 0:00:14.4]}
52... Kf4 {[%clk 0:00:07.5]} 53. hxg4 {[%clk 0:00:10.5]} 53... Kg5 {[%clk
0:00:06.1]} 54. Nd2 {[%clk 0:00:06.6]} 54... h5 {[%clk 0:00:06.4]} 55. Ne4+
{[%clk 0:00:04.6]} 55... Kg6 {[%clk 0:00:05.5]} 0-1

[Event "*** Titled Tuesday Blitz"]
[Site "Chess.com"]
[Date "2020.11.03"]
[Round "3"]
[White "German_Bazeev"]
[Black "juancruzarias"]
[Result "1-0"]
[WhiteElo "2742"]
[BlackElo "2551"]
[TimeControl "180+1"]
[EndTime "10:31:54 PST"]
[Termination "German_Bazeev won by resignation"]

1. d4 {[%clk 0:03:00.9]} 1... Nf6 {[%clk 0:03:00.5]} 2. Bg5 {[%clk 0:02:58.7]}
2... d6 {[%clk 0:02:56.7]} 3. Bxf6 {[%clk 0:02:58.3]} 3... gxf6 {[%clk
0:02:55.9]} 4. e3 {[%clk 0:02:57.4]} 4... c6 {[%clk 0:02:54]} 5. Nf3 {[%clk
0:02:56.9]} 5... Bg4 {[%clk 0:02:50.9]} 6. g3 {[%clk 0:02:56.1]} 6... h5 {[%clk
0:02:47.9]} 7. h4 {[%clk 0:02:55.5]} 7... Nd7 {[%clk 0:02:43.4]} 8. Be2 {[%clk
0:02:50.7]} 8... Qb6 {[%clk 0:02:43.9]} 9. Qc1 {[%clk 0:02:48.4]} 9... f5 {[%clk
0:02:43.6]} 10. Nbd2 {[%clk 0:02:48.2]} 10... Nf6 {[%clk 0:02:43.7]} 11. a4
{[%clk 0:02:41.8]} 11... Bh6 {[%clk 0:02:41.2]} 12. a5 {[%clk 0:02:40.5]} 12...
Qc7 {[%clk 0:02:41.5]} 13. a6 {[%clk 0:02:40.2]} 13... b5 {[%clk 0:02:40.9]} 14.
c4 {[%clk 0:02:34.1]} 14... b4 {[%clk 0:02:39.5]} 15. c5 {[%clk 0:02:32.9]}
15... d5 {[%clk 0:02:30.4]} 16. Ne5 {[%clk 0:02:29.5]} 16... Bxe2 {[%clk
0:02:28.2]} 17. Kxe2 {[%clk 0:02:30.4]} 17... Ng4 {[%clk 0:02:28.2]} 18. Ndf3
{[%clk 0:02:17]} 18... Rb8 {[%clk 0:02:22.6]} 19. Qc2 {[%clk 0:02:09.7]} 19...
e6 {[%clk 0:02:17.9]} 20. b3 {[%clk 0:02:06.2]} 20... Rg8 {[%clk 0:02:08.2]} 21.
Nd3 {[%clk 0:02:01.5]} 21... f6 {[%clk 0:02:03.1]} 22. Nf4 {[%clk 0:01:59.7]}
22... Qf7 {[%clk 0:01:58.3]} 23. Nd3 {[%clk 0:01:55.1]} 23... Qc7 {[%clk
0:01:54.8]} 24. Ra4 {[%clk 0:01:44.6]} 24... e5 {[%clk 0:01:54.8]} 25. dxe5
{[%clk 0:00:51.3]} 25... fxe5 {[%clk 0:01:54]} 26. Ndxe5 {[%clk 0:00:51.1]}
26... Nxe5 {[%clk 0:01:51.2]} 27. Qxf5 {[%clk 0:00:50.7]} 27... Ng4 {[%clk
0:01:16]} 28. Qxh5+ {[%clk 0:00:49.9]} 28... Qf7 {[%clk 0:01:15.6]} 29. Qxf7+
{[%clk 0:00:49.7]} 29... Kxf7 {[%clk 0:01:15.2]} 30. Rd1 {[%clk 0:00:44.6]}
30... Rb5 {[%clk 0:01:05.9]} 31. Rd4 {[%clk 0:00:37.2]} 31... Nf6 {[%clk
0:00:46.6]} 32. Rdxb4 {[%clk 0:00:34.4]} 32... Rgb8 {[%clk 0:00:43.6]} 33. Rxb5
{[%clk 0:00:32.4]} 33... Rxb5 {[%clk 0:00:44.5]} 34. b4 {[%clk 0:00:32.9]} 34...
Ne4 {[%clk 0:00:43.4]} 35. Ne5+ {[%clk 0:00:17.4]} 35... Ke6 {[%clk 0:00:42.1]}
36. Nxc6 {[%clk 0:00:17.7]} 36... Nc3+ {[%clk 0:00:41.9]} 37. Kd3 {[%clk
0:00:18]} 37... Bg7 {[%clk 0:00:40.1]} 38. Nxa7 {[%clk 0:00:15.6]} 38... Rxc5
{[%clk 0:00:32.4]} 39. bxc5 {[%clk 0:00:14.3]} 39... Nxa4 {[%clk 0:00:33.1]} 40.
c6 {[%clk 0:00:12.1]} 40... Nc5+ {[%clk 0:00:32.9]} 41. Ke2 {[%clk 0:00:12.6]}
41... Nxa6 {[%clk 0:00:33.8]} 42. Nb5 {[%clk 0:00:12.2]} 42... Nb4 {[%clk
0:00:32.1]} 43. c7 {[%clk 0:00:12.2]} 43... Kd7 {[%clk 0:00:32.6]} 44. g4 {[%clk
0:00:11.9]} 44... Na6 {[%clk 0:00:27.7]} 45. f4 {[%clk 0:00:11.8]} 45... Nxc7
{[%clk 0:00:28.2]} 46. Nxc7 {[%clk 0:00:12.7]} 46... Kxc7 {[%clk 0:00:29.1]} 47.
g5 {[%clk 0:00:13.2]} 47... Kd6 {[%clk 0:00:29.6]} 48. h5 {[%clk 0:00:12.4]}
48... Ke6 {[%clk 0:00:30.1]} 49. Kf3 {[%clk 0:00:07.6]} 49... Kf5 {[%clk
0:00:30.1]} 50. h6 {[%clk 0:00:08.1]} 50... Bf8 {[%clk 0:00:30.6]} 51. Kg3
{[%clk 0:00:08.5]} 51... Bb4 {[%clk 0:00:25.7]} 52. Kh4 {[%clk 0:00:07.8]} 52...
Bd2 {[%clk 0:00:21.7]} 53. Kh5 {[%clk 0:00:08]} 53... Bxe3 {[%clk 0:00:21.3]}
54. g6 {[%clk 0:00:08.5]} 54... Kf6 {[%clk 0:00:12.8]} 55. f5 {[%clk 0:00:05.5]}
55... Bd4 {[%clk 0:00:10]} 56. Kg4 {[%clk 0:00:02.1]} 56... Be3 {[%clk
0:00:10.2]} 57. Kh5 {[%clk 0:00:02.3]} 57... Bc1 {[%clk 0:00:10.5]} 58. g7
{[%clk 0:00:02]} 58... Kf7 {[%clk 0:00:11]} 59. f6 {[%clk 0:00:02.4]} 59... d4
{[%clk 0:00:10.4]} 60. h7 {[%clk 0:00:02.7]} 60... d3 {[%clk 0:00:10.4]} 61.
g8=Q+ {[%clk 0:00:03.6]} 61... Kxf6 {[%clk 0:00:10.4]} 62. Qd5 {[%clk
0:00:04.5]} 62... d2 {[%clk 0:00:10.4]} 63. h8=Q+ {[%clk 0:00:03.8]} 1-0

[Event "*** Titled Tuesday Blitz"]
[Site "Chess.com"]
[Date "2020.11.03"]
[Round "3"]
[White "Anton_Demchenko"]
[Black "Rakesh"]
[Result "1-0"]
[WhiteElo "2846"]
[BlackElo "2459"]
[TimeControl "180+1"]
[EndTime "10:31:58 PST"]
[Termination "Anton_Demchenko won by resignation"]

1. e4 {[%clk 0:03:00.9]} 1... c5 {[%clk 0:02:58.4]} 2. Nf3 {[%clk 0:03:00.7]}
2... e6 {[%clk 0:02:57.2]} 3. g3 {[%clk 0:03:00.2]} 3... Nc6 {[%clk 0:02:55.7]}
4. Bg2 {[%clk 0:03:00]} 4... g6 {[%clk 0:02:56.1]} 5. O-O {[%clk 0:02:58.9]}
5... Bg7 {[%clk 0:02:53.5]} 6. c3 {[%clk 0:02:51.8]} 6... e5 {[%clk 0:02:41]} 7.
d3 {[%clk 0:02:43.8]} 7... Nge7 {[%clk 0:02:34.6]} 8. a3 {[%clk 0:02:44.2]} 8...
d6 {[%clk 0:02:15.4]} 9. b4 {[%clk 0:02:43.7]} 9... b6 {[%clk 0:02:14.7]} 10.
Bb2 {[%clk 0:02:33.1]} 10... O-O {[%clk 0:02:02.5]} 11. b5 {[%clk 0:02:25.5]}
11... Na5 {[%clk 0:01:52.4]} 12. c4 {[%clk 0:02:25.4]} 12... Be6 {[%clk
0:01:47.4]} 13. Nc3 {[%clk 0:02:25]} 13... Qd7 {[%clk 0:01:47]} 14. Ng5 {[%clk
0:02:03.3]} 14... Bg4 {[%clk 0:01:28.6]} 15. f3 {[%clk 0:02:02.9]} 15... Be6
{[%clk 0:01:18.1]} 16. a4 {[%clk 0:01:55.4]} 16... Rae8 {[%clk 0:00:57.2]} 17.
Nxe6 {[%clk 0:01:45.8]} 17... Qxe6 {[%clk 0:00:55.4]} 18. Kh1 {[%clk 0:00:54.9]}
18... f5 {[%clk 0:00:51.1]} 19. Bh3 {[%clk 0:00:53]} 19... Qf7 {[%clk
0:00:50.9]} 20. Qc2 {[%clk 0:00:48.1]} 20... Kh8 {[%clk 0:00:50.6]} 21. Rae1
{[%clk 0:00:47.2]} 21... f4 {[%clk 0:00:46.4]} 22. Nd5 {[%clk 0:00:34.7]} 22...
Nxd5 {[%clk 0:00:45.6]} 23. exd5 {[%clk 0:00:34.9]} 23... fxg3 {[%clk 0:00:44]}
24. hxg3 {[%clk 0:00:34.6]} 24... g5 {[%clk 0:00:43.9]} 25. Kg2 {[%clk
0:00:31.8]} 25... Qg6 {[%clk 0:00:43.9]} 26. Be6 {[%clk 0:00:18.2]} 26... Rf6
{[%clk 0:00:42]} 27. Bc3 {[%clk 0:00:15.5]} 27... Nb7 {[%clk 0:00:41.5]} 28. Qe2
{[%clk 0:00:15.6]} 28... Nd8 {[%clk 0:00:40.7]} 29. Bg4 {[%clk 0:00:15.9]} 29...
Ref8 {[%clk 0:00:40.8]} 30. Rh1 {[%clk 0:00:15.9]} 30... Nf7 {[%clk 0:00:37.7]}
31. Bh5 {[%clk 0:00:13.9]} 31... Qf5 {[%clk 0:00:38.2]} 32. Bg4 {[%clk
0:00:13.6]} 32... Qg6 {[%clk 0:00:38.7]} 33. Qe4 {[%clk 0:00:14]} 33... Nh6
{[%clk 0:00:37.2]} 34. Qxg6 {[%clk 0:00:13.2]} 34... Rxg6 {[%clk 0:00:38.1]} 35.
Bh5 {[%clk 0:00:13.5]} 35... Rgf6 {[%clk 0:00:38.4]} 36. Ref1 {[%clk 0:00:11.7]}
36... Nf5 {[%clk 0:00:38.5]} 37. Bd2 {[%clk 0:00:09.9]} 37... Nd4 {[%clk
0:00:38]} 38. Bxg5 {[%clk 0:00:08.4]} 38... Nc2 {[%clk 0:00:32.9]} 39. Bxf6
{[%clk 0:00:05.8]} 39... Rxf6 {[%clk 0:00:28.9]} 40. Rf2 {[%clk 0:00:05.4]}
40... Ne3+ {[%clk 0:00:28.5]} 41. Kg1 {[%clk 0:00:05.6]} 41... Bh6 {[%clk
0:00:29.4]} 42. Bg4 {[%clk 0:00:05.4]} 42... Nxg4 {[%clk 0:00:28.4]} 43. fxg4
{[%clk 0:00:04.9]} 43... Be3 {[%clk 0:00:28.9]} 44. Rh2 {[%clk 0:00:05.2]} 44...
Kg7 {[%clk 0:00:29.2]} 45. Kf1 {[%clk 0:00:05.7]} 45... Bxf2 {[%clk 0:00:28.6]}
46. Rxf2 {[%clk 0:00:06.6]} 46... Rxf2+ {[%clk 0:00:23.7]} 47. Kxf2 {[%clk
0:00:06.9]} 47... Kf6 {[%clk 0:00:24.6]} 48. Kg2 {[%clk 0:00:04.9]} 48... Kg5
{[%clk 0:00:24.5]} 49. Kf3 {[%clk 0:00:03.6]} 49... h6 {[%clk 0:00:24.7]} 50.
Kf2 {[%clk 0:00:03.2]} 50... Kxg4 {[%clk 0:00:25]} 51. Kg2 {[%clk 0:00:03.9]}
51... h5 {[%clk 0:00:24.5]} 52. Kf2 {[%clk 0:00:04.5]} 52... Kg5 {[%clk
0:00:11.8]} 53. Kf3 {[%clk 0:00:04.8]} 53... Kf5 {[%clk 0:00:12.4]} 54. Ke3
{[%clk 0:00:05.1]} 54... Kg4 {[%clk 0:00:12]} 55. Kf2 {[%clk 0:00:05.6]} 55...
Kh3 {[%clk 0:00:08.9]} 56. Kf3 {[%clk 0:00:05.6]} 56... Kh2 {[%clk 0:00:08.1]}
57. g4 {[%clk 0:00:06.2]} 57... hxg4+ {[%clk 0:00:08.5]} 58. Kxg4 {[%clk
0:00:07.1]} 58... Kg2 {[%clk 0:00:09.2]} 59. Kf5 {[%clk 0:00:08]} 59... Kf3
{[%clk 0:00:09.7]} 60. Ke6 {[%clk 0:00:08.5]} 60... Ke3 {[%clk 0:00:10.4]} 61.
Kxd6 {[%clk 0:00:09]} 61... Kxd3 {[%clk 0:00:11.3]} 62. Kc6 {[%clk 0:00:09.5]}
62... e4 {[%clk 0:00:11.5]} 63. d6 {[%clk 0:00:10.2]} 63... e3 {[%clk
0:00:11.8]} 64. d7 {[%clk 0:00:10.6]} 64... e2 {[%clk 0:00:11.4]} 65. d8=Q+
{[%clk 0:00:11.2]} 1-0

[Event "*** Titled Tuesday Blitz"]
[Site "Chess.com"]
[Date "2020.11.03"]
[Round "3"]
[White "swimmerchess"]
[Black "Markov_Mikhail"]
[Result "1/2-1/2"]
[WhiteElo "2848"]
[BlackElo "2643"]
[TimeControl "180+1"]
[EndTime "10:31:59 PST"]
[Termination "Game drawn by repetition"]

1. e4 {[%clk 0:03:00.9]} 1... c5 {[%clk 0:02:59.3]} 2. Nf3 {[%clk 0:03:00.1]}
2... d6 {[%clk 0:02:59]} 3. d4 {[%clk 0:03:00.1]} 3... cxd4 {[%clk 0:02:59.9]}
4. Nxd4 {[%clk 0:03:01]} 4... Nf6 {[%clk 0:03:00.5]} 5. Nc3 {[%clk 0:03:01.2]}
5... a6 {[%clk 0:03:01]} 6. Bg5 {[%clk 0:03:01.8]} 6... e6 {[%clk 0:03:00.9]} 7.
f4 {[%clk 0:03:01.9]} 7... Be7 {[%clk 0:03:01.2]} 8. Qf3 {[%clk 0:03:01.6]} 8...
Nbd7 {[%clk 0:03:01.4]} 9. O-O-O {[%clk 0:03:00.2]} 9... h6 {[%clk 0:03:00.6]}
10. Bh4 {[%clk 0:02:55.6]} 10... Qc7 {[%clk 0:02:59.9]} 11. Be2 {[%clk
0:02:54.7]} 11... Rb8 {[%clk 0:02:57.8]} 12. Qg3 {[%clk 0:02:05.1]} 12... Rg8
{[%clk 0:02:56.3]} 13. f5 {[%clk 0:02:02]} 13... e5 {[%clk 0:02:35.6]} 14. Nb3
{[%clk 0:01:59.1]} 14... b5 {[%clk 0:02:25.5]} 15. a3 {[%clk 0:01:47.8]} 15...
Bb7 {[%clk 0:02:22.7]} 16. Qd3 {[%clk 0:01:41.5]} 16... Nc5 {[%clk 0:02:20.9]}
17. Nxc5 {[%clk 0:01:41]} 17... Qxc5 {[%clk 0:02:21.8]} 18. Bxf6 {[%clk
0:01:33.3]} 18... gxf6 {[%clk 0:02:18.2]} 19. Bf3 {[%clk 0:01:28.3]} 19... Kd7
{[%clk 0:02:13]} 20. Nd5 {[%clk 0:01:20.5]} 20... Bxd5 {[%clk 0:02:11.6]} 21.
Qxd5 {[%clk 0:01:21.4]} 21... Qxd5 {[%clk 0:02:09.1]} 22. Rxd5 {[%clk
0:01:22.3]} 22... Bd8 {[%clk 0:01:59.8]} 23. Rhd1 {[%clk 0:01:11.2]} 23... Bc7
{[%clk 0:01:59.3]} 24. g3 {[%clk 0:01:11.5]} 24... Rb6 {[%clk 0:01:55.7]} 25.
Bh5 {[%clk 0:01:10.7]} 25... Rf8 {[%clk 0:01:54.5]} 26. R1d3 {[%clk 0:01:08.9]}
26... Rc6 {[%clk 0:01:48]} 27. Kd1 {[%clk 0:01:09.1]} 27... Ke7 {[%clk
0:01:47.3]} 28. Be2 {[%clk 0:01:03]} 28... Rb8 {[%clk 0:01:46.5]} 29. g4 {[%clk
0:01:00.8]} 29... a5 {[%clk 0:01:45.6]} 30. Rh3 {[%clk 0:00:57.9]} 30... b4
{[%clk 0:01:32.6]} 31. a4 {[%clk 0:00:58]} 31... Rh8 {[%clk 0:01:28.3]} 32. b3
{[%clk 0:00:57.6]} 32... Rc5 {[%clk 0:01:26.7]} 33. Rdd3 {[%clk 0:00:55.2]}
33... Bb6 {[%clk 0:01:25]} 34. Rh5 {[%clk 0:00:54.1]} 34... Rc3 {[%clk
0:01:19.8]} 35. h4 {[%clk 0:00:34.2]} 35... Rxd3+ {[%clk 0:01:18.5]} 36. Bxd3
{[%clk 0:00:35.1]} 36... Be3 {[%clk 0:01:18.8]} 37. Ke2 {[%clk 0:00:26.7]} 37...
Bf4 {[%clk 0:01:18.6]} 38. Bc4 {[%clk 0:00:26.7]} 38... Kf8 {[%clk 0:01:16.2]}
39. Kf3 {[%clk 0:00:19.3]} 39... Kg7 {[%clk 0:01:15.9]} 40. g5 {[%clk
0:00:19.3]} 40... fxg5 {[%clk 0:01:12.7]} 41. hxg5 {[%clk 0:00:19.4]} 41... Bxg5
{[%clk 0:01:11.8]} 42. Rh1 {[%clk 0:00:19.9]} 42... h5 {[%clk 0:01:09.8]} 43.
Rg1 {[%clk 0:00:18.8]} 43... Kf6 {[%clk 0:01:09.1]} 44. Bxf7 {[%clk 0:00:17.4]}
44... h4 {[%clk 0:01:07.6]} 45. Bc4 {[%clk 0:00:17.2]} 45... h3 {[%clk
0:01:07.3]} 46. Rh1 {[%clk 0:00:17.7]} 46... h2 {[%clk 0:01:07.3]} 47. Kg2
{[%clk 0:00:17]} 47... Bf4 {[%clk 0:01:07.4]} 48. Rd1 {[%clk 0:00:17.4]} 48...
Ke7 {[%clk 0:01:06.9]} 49. f6+ {[%clk 0:00:17.2]} 49... Kxf6 {[%clk 0:01:04.2]}
50. Rxd6+ {[%clk 0:00:17.4]} 50... Ke7 {[%clk 0:01:04.4]} 51. Rd1 {[%clk
0:00:17.7]} 51... Rh6 {[%clk 0:01:02.7]} 52. Kh1 {[%clk 0:00:17.4]} 52... Rg6
{[%clk 0:00:56.3]} 53. Bb5 {[%clk 0:00:17.5]} 53... Rg5 {[%clk 0:00:55]} 54.
Rd7+ {[%clk 0:00:16.4]} 54... Kf6 {[%clk 0:00:54]} 55. Rd1 {[%clk 0:00:17.3]}
55... Kg6 {[%clk 0:00:53.8]} 56. Rd6+ {[%clk 0:00:16.1]} 56... Kh5 {[%clk
0:00:52.5]} 57. Be2+ {[%clk 0:00:15.9]} 57... Kh4 {[%clk 0:00:52]} 58. Rh6+
{[%clk 0:00:16]} 58... Kg3 {[%clk 0:00:46.5]} 59. Rxh2 {[%clk 0:00:16.9]} 59...
Be3 {[%clk 0:00:41.9]} 60. Rg2+ {[%clk 0:00:16.4]} 60... Kf4 {[%clk 0:00:42.1]}
61. Rxg5 {[%clk 0:00:16.9]} 61... Kxg5 {[%clk 0:00:43]} 62. Kg2 {[%clk
0:00:17.5]} 62... Kf4 {[%clk 0:00:42.7]} 63. Bd3 {[%clk 0:00:18.4]} 63... Bd4
{[%clk 0:00:42.9]} 64. Kh3 {[%clk 0:00:18.2]} 64... Bc3 {[%clk 0:00:43.8]} 65.
Kh4 {[%clk 0:00:18.4]} 65... Bd4 {[%clk 0:00:44.7]} 66. Kh5 {[%clk 0:00:18.9]}
66... Bc3 {[%clk 0:00:45.6]} 67. Kg6 {[%clk 0:00:19.5]} 67... Ke3 {[%clk
0:00:46]} 68. Kf6 {[%clk 0:00:19.8]} 68... Kd4 {[%clk 0:00:45.6]} 69. Ke6 {[%clk
0:00:20.1]} 69... Kc5 {[%clk 0:00:45.9]} 70. Kd7 {[%clk 0:00:20.7]} 70... Kb6
{[%clk 0:00:46.2]} 71. Kd6 {[%clk 0:00:21]} 71... Bd4 {[%clk 0:00:46]} 72. Kd5
{[%clk 0:00:21.4]} 72... Bc3 {[%clk 0:00:46.9]} 73. Bc4 {[%clk 0:00:21.2]} 73...
Bd4 {[%clk 0:00:47.8]} 74. Bd3 {[%clk 0:00:21.4]} 74... Bc3 {[%clk 0:00:48.7]}
75. Kd6 {[%clk 0:00:19.4]} 75... Bd4 {[%clk 0:00:49.6]} 76. Kd7 {[%clk
0:00:19.5]} 76... Bc3 {[%clk 0:00:50.5]} 77. Kc8 {[%clk 0:00:19.9]} 77... Bd4
{[%clk 0:00:51.2]} 78. Kb8 {[%clk 0:00:20.3]} 78... Bc3 {[%clk 0:00:52.1]} 79.
Kc8 {[%clk 0:00:20.3]} 79... Bd4 {[%clk 0:00:53]} 80. Kd7 {[%clk 0:00:20.9]}
80... Bc3 {[%clk 0:00:53.9]} 1/2-1/2